Workbook

Sheet Sheet1
A1: Wire & Sheet Metal Gage Table | E1: (Ref : Aircraft Mechanics Digest, Palomar Books)
A3: No of Gage | B3: American or Brown & Shape AWG | C3: Washburn & Moen W & MG | D3: Birmingham or Stub's Iron Wire BWG | E3: U.S. Standard For Plate USG
A4: 7-0 | C4: 0.49 | E4: 0.5
A5: 6-0 | B5: 0.58 | C5: 0.161 | E5: 0.468
A6: 5-0 | B6: 0.516 | C6: 0.43 | D6: 0.5 | E6: 0.437
A7: 4-0 | B7: 0.46 | C7: 0.393 | D7: 0.454 | E7: 0.406
A8: 3-0 | B8: 0.409 | C8: 0.362 | D8: 0.425 | E8: 0.375
A9: 2-0 | B9: 0.364 | C9: 0.331 | D9: 0.38 | E9: 0.343
A10: 0 | B10: 0.324 | C10: 0.306 | D10: 0.34 | E10: 0.312
A11: 1 | B11: 0.289 | C11: 0.283 | D11: 0.3 | E11: 0.281
A12: 2 | B12: 0.257 | C12: 0.262 | D12: 0.284 | E12: 0.265
A13: 3 | B13: 0.229 | C13: 0.243 | D13: 0.259 | E13: 0.25
A14: 4 | B14: 0.204 | C14: 0.225 | D14: 0.238 | E14: 0.234
A15: 5 | B15: 0.181 | C15: 0.207 | D15: 0.22 | E15: 0.218
A16: 6 | B16: 0.162 | C16: 0.192 | D16: 0.203 | E16: 0.203
A17: 7 | B17: 0.144 | C17: 0.177 | D17: 0.18 | E17: 0.187
A18: 8 | B18: 0.128 | C18: 0.162 | D18: 0.165 | E18: 0.171
A19: 9 | B19: 0.114 | C19: 0.148 | D19: 0.148 | E19: 0.156
A20: 10 | B20: 0.101 | C20: 0.135 | D20: 0.134 | E20: 0.14
A21: 11 | B21: 0.09 | C21: 0.12 | D21: 0.12 | E21: 0.125
A22: 12 | B22: 0.08 | C22: 0.105 | D22: 0.109 | E22: 0.109
A23: 13 | B23: 0.072 | C23: 0.091 | D23: 0.095 | E23: 0.093
A24: 14 | B24: 0.064 | C24: 0.08 | D24: 0.083 | E24: 0.078
A25: 15 | B25: 0.057 | C25: 0.072 | D25: 0.072 | E25: 0.07
A26: 16 | B26: 0.05 | C26: 0.062 | D26: 0.065 | E26: 0.062
A27: 17 | B27: 0.045 | C27: 0.054 | D27: 0.058 | E27: 0.056
A28: 18 | B28: 0.04 | C28: 0.047 | D28: 0.049 | E28: 0.05
A29: 19 | B29: 0.035 | C29: 0.041 | D29: 0.042 | E29: 0.043
A30: 20 | B30: 0.032 | C30: 0.034 | D30: 0.035 | E30: 0.037
A31: 21 | B31: 0.028 | C31: 0.031 | D31: 0.032 | E31: 0.034
A32: 22 | B32: 0.025 | C32: 0.028 | D32: 0.028 | E32: 0.031
A33: 23 | B33: 0.022 | C33: 0.025 | D33: 0.025 | E33: 0.028
A34: 24 | B34: 0.02 | C34: 0.023 | D34: 0.022 | E34: 0.025
A35: 25 | B35: 0.017 | C35: 0.02 | D35: 0.02 | E35: 0.021
A36: 26 | B36: 0.015 | C36: 0.018 | D36: 0.018 | E36: 0.018
A37: 27 | B37: 0.014 | C37: 0.017 | D37: 0.016 | E37: 0.017
A38: 28 | B38: 0.012 | C38: 0.016 | D38: 0.014 | E38: 0.015
A39: 29 | B39: 0.011 | C39: 0.015 | D39: 0.013 | E39: 0.014
A40: 30 | B40: 0.01 | C40: 0.014 | D40: 0.012 | E40: 0.012
A41: 31 | B41: 0.008 | C41: 0.013 | D41: 0.01 | E41: 0.01
A42: 32 | B42: 0.008 | C42: 0.012 | D42: 0.009 | E42: 0.01
A43: 33 | B43: 0.007 | C43: 0.011 | D43: 0.008 | E43: 0.009
A44: 34 | B44: 0.006 | C44: 0.01 | D44: 0.007 | E44: 0.008
A45: 35 | B45: 0.005 | C45: 0.009 | D45: 0.005 | E45: 0.007
A46: 36 | B46: 0.005 | C46: 0.009 | D46: 0.004 | E46: 0.007
A47: 37 | B47: 0.004 | C47: 0.008 | E47: 0.006
A48: 38 | B48: 0.004 | C48: 0.008 | E48: 0.006
A49: 39 | B49: 0.003 | C49: 0.007
A50: 40 | B50: 0.003 | C50: 0.007

Sheet Data
A1: *** ACCELERATION
A2: 1 | B2: m/s²
A3: 100 | B3: cm/s² (=galileo)
A4: =A5*12 -> 472.4409449 | B4: ft/s²
A5: =A2/0.0254 -> 39.37007874 | B5: in/s²
A6: =A2*3600^2 -> 12960000 | B6: m/h²
A7: =A4*3600^2 -> 6122834646 | B7: ft/h²
A8: 0.1019716213 | B8: g (std. Grav)
A9: *** ANGLE
A10: 1 | B10: ° (Deg)
A11: 60 | B11: ' (min)
A12: 3600 | B12: " (sec)
A13: =A10*PI()/180 -> 0.01745329252 | B13: rad
A14: =A10/360 -> 0.002777777778 | B14: rev
A15: *** AREA
A16: 1 | B16: in²
A17: =A16/12^2 -> 0.006944444444 | B17: ft²
A18: =A16*0.0254^2 -> 0.00064516 | B18: m²
A19: =A18*100^2 -> 6.4516 | B19: cm²
A20: =A19*10^2 -> 645.16 | B20: mm²
A21: =A18/1000^2 -> 6.4516e-10 | B21: km²
A22: 0.000771605 | B22: yd²
A23: 2.55076e-05 | B23: rod²
A24: 2.49098e-10 | B24: mile²
A25: 6.4516e-06 | B25: a (are)
A26: 6.4516e-08 | B26: ha (hectare)
A27: 6.3769e-07 | B27: rood
A28: 1.59423e-07 | B28: acre
A29: 0.0001951609 | B29: Pyung(Korean)
A30: 0.0070257924 | B30: Ja²(Korean)
A31: 6.5051483e-07 | B31: Danbo(Korean)
A32: 6.5051483e-08 | B32: Jeongbo(Korean)
A33: 0.000403225 | B33: Tatami(Japanese)
A34: *** ANGULAR VELOCITY
A35: 1 | B35: rad/s
A36: =A35/2/PI() -> 0.1591549431 | B36: rev/s
A37: =A36*60 -> 9.549296586 | B37: rev/min (+RPM)
A38: =A37*60 -> 572.9577951 | B38: rev/h
A39: =A35*180/PI() -> 57.29577951 | B39: ° (Deg)/s
A40: *** CAPACITANCE
A41: 1 | B41: F (farad)
A42: 1000000 | B42: µF
A43: 1000000000000 | B43: pF
A44: 898700000000 | B44: stF
A45: 1e-09 | B45: abF
A46: *** CHARGE
A47: 1 | B47: C (coulomb)
A48: 0.1 | B48: abC
A49: 2998000000 | B49: stC
A50: 0.000277778 | B50: A·h
A51: 1.03638e-05 | B51: Faraday
A52: *** CURRENT
A53: 1 | B53: A
A54: 1000 | B54: mA
A55: 1000000 | B55: µA
A56: 2998000000 | B56: stA
A57: 0.1 | B57: abA
A58: *** DATA STORAGE
A59: 1 | B59: bit
A60: 0.125 | B60: byte
A61: 0.000244140625 | B61: block
A62: 1.83537884e-10 | B62: CD-ROM
A63: 0.03125 | B63: double word
A64: 0.015625 | B64: quadruple word
A65: 0.0625 | B65: word
A66: 2.476921741e-11 | B66: DVD(1 layer, 1 side)
A67: 1.23846087e-11 | B67: DVD(1 layer, 2 side)
A68: 1.369592021e-11 | B68: DVD(2 layer, 1 side)
A69: 6.847960107e-12 | B69: DVD(2 layer, 2 side)
A70: 8.575364419e-08 | B70: floppy disk,3.5" HD
A71: 1.084202172e-19 | B71: exabyte
A72: 0.25 | B72: nibble
A73: 0.0001220703125 | B73: kilobyte
A74: 1.192092896e-07 | B74: megabyte
A75: 1.164153218e-10 | B75: gigabyte
A76: 1.110223025e-16 | B76: petabyte
A77: 1.136868377e-13 | B77: terabyte
A78: 1.244624814e-09 | B78: Zip disk
A79: *** DATA TRANSFER
A80: 1 | B80: byte/sec
A81: 8e-08 | B81: ethernet(100B-T)
A82: 8e-07 | B82: ethernet(10B-T)
A83: 8e-09 | B83: ethernet(gigabit)
A84: 1e-09 | B84: gigabyte/sec
A85: 0.000125 | B85: ISDN(64k)
A86: 6.25e-05 | B86: ISDN(128k)
A87: 0.001 | B87: kilobyte/sec
A88: 1e-06 | B88: megabyte/sec
A89: 0.02666666667 | B89: modem(300)
A90: 0.006666666667 | B90: modem(1200)
A91: 0.003333333333 | B91: modem(2400)
A92: 0.0008333333333 | B92: modem(9600)
A93: 0.0005555555556 | B93: modem(14.4k)
A94: 0.0002777777778 | B94: modem(28.8k)
A95: 0.0002380952381 | B95: modem(33.6k)
A96: 0.0001428571429 | B96: modem(56k)
A97: 5.18134715e-06 | B97: T1
A98: 1.267427123e-06 | B98: T2
A99: 1.788268956e-07 | B99: T3
A100: 2.9178338e-08 | B100: T4
A101: *** DENSITY
A102: 1 | B102: kg/m³
A103: 0.001 | B103: kg/l
A104: 0.001 | B104: g/cm³ (g/ml)
A105: 1 | B105: g/l
A106: 0.001 | B106: t/m³
A107: 3.61273e-05 | B107: lb/in³
A108: 0.062428 | B108: lb/ft³
A109: 1.1228365e-06 | B109: slug/in³
A110: 0.0019402614 | B110: slug/ft³
A111: 0.0083454 | B111: lb/US gal
A112: 0.0100224 | B112: lb/UK gal
A113: 0.133526 | B113: oz/US gal
A114: 0.160359 | B114: oz/UK gal
A115: *** DIFFUSIVITY
A116: 1 | B116: m²/s
A117: 10000 | B117: cm²/s
A118: =A116/0.0254^2 -> 1550.0031 | B118: in²/s
A119: =A118/12^2 -> 10.76391042 | B119: ft²/s
A120: =A119*3600 -> 38750.0775 | B120: ft²/h
A121: *** EMF
A122: 1 | B122: V
A123: 100000000 | B123: abV
A124: 0.003335557 | B124: stV
A125: *** ENERGY/WORK
A126: 1 | B126: J (=W·s)
A127: 0.001 | B127: kJ
A128: 10000000 | B128: erg
A129: 0.0002777778 | B129: Wh
A130: 2.777778e-07 | B130: kWh
A131: 2.777778e-10 | B131: MWh
A132: 0.101972 | B132: kgf·m (kp·m)
A133: 10197.2 | B133: gf·cm (p·cm)
A134: 0.238846 | B134: cal
A135: 0.000238846 | B135: kcal
A136: 0.00135962 | B136: KS·s
A137: 3.776726e-07 | B137: KS·h
A138: 6.242e+18 | B138: eV
A139: 6242000000000 | B139: MeV
A140: 23.7304 | B140: ft·pdl
A141: 0.737562 | B141: lbf·ft
A142: 3.72506e-07 | B142: hp·h
A143: 0.000947817 | B143: Btu
A144: 6702412869 | B144: amu
A145: 5.03448e+22 | B145: wavenumber
A146: 0.00986895 | B146: liter·atm
A147: *** ENTHALPY
A148: 1 | B148: J/kg (=gray)
A149: 0.001 | B149: kJ/kg
A150: 0.000238846 | B150: cal/g
A151: 0.238846 | B151: cal/kg
A152: 0.000238846 | B152: kcal/kg
A153: 0.0004299228 | B153: Btu/lb
A154: 1 | B154: sievert
A155: 100 | B155: rem
A156: *** ENTROPY
A157: 1 | B157: J/kg·°C
A158: 0.001 | B158: kJ/kg·°C
A159: 0.000238846 | B159: cal/g·°C
A160: 0.238846 | B160: cal/kg·°C
A161: 0.000238846 | B161: kcal/kg·°C
A162: 0.000238846 | B162: Btu/lb·°F
A163: *** FIELD STRENGTH
A164: 1 | B164: V/m
A165: 3.336e-05 | B165: stV/cm
A166: 0.01 | B166: V/cm
A167: 0.0254 | B167: V/in
A168: 0.3048 | B168: V/ft
A169: *** FLOW RATE
A170: 1 | B170: m³/s
A171: 3600 | B171: m³/h
A172: 60000 | B172: l/min
A173: 1000 | B173: l/s
A174: 1000000 | B174: cm³/s
A175: 35.314667 | B175: ft³/s
A176: 2118.880003 | B176: CFM (=ft³/min)
A177: 15850.33214 | B177: US gal/min
A178: 13198.16157 | B178: UK gal/min
A179: 543439.6505 | B179: bbl/d(=barrel oil/d)
A180: *** FORCE/WEIGHT
A181: 1 | B181: N
A182: 0.001 | B182: kN (=sthene)
A183: 100000 | B183: dyne
A184: 7.23301 | B184: pdl (poundal)
A185: 0.224809 | B185: lbf
A186: 101.97162 | B186: gf
A187: 0.10197162 | B187: kgf (=kp)
A188: 101.97162 | B188: p (pond=gf)
A189: 3.59694 | B189: ozf
A190: 0.000100361 | B190: UK tonf
A191: 0.0002248409 | B191: kip
A192: *** FREQUENCY
A193: 1 | B193: rad/s
A194: 60 | B194: rad/min
A195: =A193/2/PI() -> 0.1591549431 | B195: Hz (rev/s)
A196: =A195/1000 -> 0.0001591549431 | B196: kHz
A197: =A196/1000 -> 1.591549431e-07 | B197: MHz
A198: =A194/2/PI() -> 9.549296586 | B198: rpm (rev/min)
A199: =A195*3600 -> 572.9577951 | B199: rev/h
A200: =A193*180/PI() -> 57.29577951 | B200: °/s
... 304 more rows
